bitfinex/quotes_SOLUSD_20241022
["timestamp","ask_amount","ask_price","bid_price","bid_amount"]
[1729575658139,5.9336,168.54,168.48,10.86005125]
[1729575660632,5.9329,168.56,168.48,10.86005125]
[1729575660833,5.9331,168.55,168.48,10.86005125]
[1729575675061,5.9331,168.55,168.5,10.86005125]
[1729575675364,5.9322,168.58,168.5,10.86005125]
[1729575675540,5.9323,168.57,168.5,10.86005125]
[1729575677359,5.9319,168.58,168.5,10.86005125]
[1729575677747,5.9322,168.57,168.5,10.86005125]
[1729575680852,15.1131,168.59,168.5,10.86005125]
[1729575681064,5.933,168.55,168.5,10.86005125]
[1729575682663,5.9327,168.56,168.5,10.86005125]
[1729575685379,0.6231497,168.65,168.58,69.48669549]
[1729575685669,3.24,168.78,168.58,69.48669549]
[1729575685670,3.24,168.78,168.65,23.776884]
[1729575685852,0.1,168.8,168.66,20.0]
[1729575686258,6.6205,168.79,168.64,20.0]
[1729575686459,6.6205,168.79,168.64,30.86005125]
[1729575686847,5.9259,168.76,168.64,30.86005125]
[1729575687168,6.5466497,168.82,168.73,10.86005125]
[1729575688665,5.9243,168.8,168.71,20.0]
[1729575689265,5.9243,168.8,168.7,20.0]
[1729575690958,12.4241,168.8,168.7,20.0]
[1729575692566,6.4998,168.8,168.7,20.0]
[1729575692770,5.9246,168.79,168.7,20.0]
[1729575696406,5.9251,168.78,168.67,20.8347]
[1729575696596,5.9251,168.78,168.69,20.0]
[1729575698674,5.9254,168.77,168.69,20.0]
[1729575698871,20.0,168.79,168.69,10.86005125]
[1729575699079,20.0,168.79,168.71,10.86005125]
[1729575699080,25.9247,168.79,168.71,10.86005125]
[1729575701372,20.0,168.79,168.71,10.86005125]
[1729575701575,5.9249,168.78,168.71,10.86005125]
[1729575703885,20.0,168.79,168.67,20.8347]
[1729575704085,5.9264,168.74,168.68,10.86005125]
[1729575704386,20.0,168.79,168.68,10.86005125]
[1729575704564,5.9269,168.72,168.67,0.8347]
[1729575704982,5.9252,168.77,168.67,0.8347]
[1729575705162,23.776884,168.78,168.67,0.8347]
[1729575705163,5.9265,168.74,168.67,0.8347]
[1729575705488,5.9265,168.74,168.67,11.69475125]
[1729575706066,23.776884,168.78,168.67,0.8347]
[1729575706067,20.0,168.77,168.67,0.8347]
[1729575706380,5.9267,168.73,168.67,0.8347]
[1729575707585,20.0,168.77,168.67,0.8347]
[1729575707884,20.0,168.77,168.67,11.69475125]
[1729575709509,5.9264,168.74,168.67,11.69475125]
[1729575711190,5.9255,168.76,168.67,0.8347]
[1729575711487,5.9265,168.74,168.67,0.8347]
[1729575712290,5.9266,168.73,168.67,0.8347]
[1729575715790,20.0,168.75,168.67,0.8347]
[1729575716093,5.9272,168.72,168.67,0.8347]
[1729575726296,20.0,168.73,168.67,0.8347]
[1729575726498,5.9277,168.7,168.67,0.8347]
[1729575727081,20.0,168.71,168.67,0.8347]
[1729575727380,5.9283,168.68,168.67,0.8347]
[1729575728796,6.1616,168.73,168.67,0.8347]
[1729575728992,5.9269,168.72,168.67,0.8347]
[1729575729188,5.9274,168.71,168.67,0.8347]
[1729575731907,5.9267,168.73,168.67,0.8347]
[1729575733004,5.9269,168.72,168.67,0.8347]
[1729575740702,16.5311,168.74,168.67,0.8347]
[1729575740909,22.4576,168.74,168.67,11.69475125]
[1729575741107,16.5311,168.74,168.67,11.69475125]
[1729575741313,5.9266,168.73,168.67,11.69475125]
[1729575744620,5.9272,168.72,168.67,0.8347]
[1729575745404,5.9266,168.73,168.67,0.8347]
[1729575745596,5.9271,168.72,168.67,0.8347]
[1729575748318,43.776884,168.73,168.67,0.8347]
[1729575749207,5.9283,168.68,168.67,0.8347]
[1729575758631,49.705184,168.68,168.67,0.8347]
[1729575764439,25.9283,168.68,168.67,0.8347]
[1729575768135,5.9283,168.68,168.67,0.8347]
[1729575775250,49.705184,168.68,168.67,0.8347]
[1729575775416,5.9311,168.61,168.56,16.1889]
[1729575775616,5.9312,168.6,168.56,16.1889]
[1729575775820,34.8228,168.66,168.56,16.1889]
[1729575776028,5.9305,168.62,168.56,16.1889]
[1729575785853,5.9308,168.61,168.56,16.1889]
[1729575787859,5.9308,168.61,168.55,20.0]
[1729575788168,5.932,168.58,168.52,15.3084]
[1729575789365,5.9326,168.56,168.52,15.3084]
[1729575790647,5.9326,168.56,168.51,20.0]
[1729575791466,5.9326,168.56,168.5,16.86725125]
[1729575792160,5.9326,168.56,168.5,6.0072]
[1729575792466,16.2954,168.61,168.44,0.1]
[1729575792467,23.876884,168.59,168.46,6.2052]
[1729575792661,5.935,168.5,168.44,15.0088]
[1729575792870,43.776884,168.54,168.44,15.0088]
[1729575793052,5.9336,168.53,168.44,15.0088]
[1729575793258,43.776884,168.54,168.44,15.0088]
[1729575793958,5.935,168.5,168.44,25.86885125]
[1729575796467,5.935,168.5,168.44,15.0088]
[1729575796684,5.935,168.5,168.44,25.86885125]
[1729575799469,5.934,168.52,168.46,10.86005125]
[1729575799668,15.5434,168.55,168.46,10.86005125]
[1729575799972,5.9333,168.54,168.5,10.86005125]
[1729575800158,5.9328,168.56,168.5,10.86005125]
[1729575800358,22.411,168.6,168.52,10.86005125]
[1729575800549,5.9322,168.57,168.52,10.86005125]
[1729575801254,22.411,168.6,168.52,10.86005125]
[1729575801452,6.1713,168.64,168.54,10.86005125]
[1729575801764,5.9311,168.61,168.56,10.86005125]
[1729575801945,5.9312,168.6,168.56,10.86005125]
[1729575805884,5.931,168.61,168.56,10.86005125]
[1729575806566,5.9312,168.6,168.56,10.86005125]
[1729575810689,21.506,168.64,168.56,10.86005125]
[1729575810864,5.9301,168.63,168.58,10.86005125]
[1729575813489,20.0,168.66,168.6,10.86005125]
[1729575813786,5.9295,168.65,168.6,10.86005125]
[1729575816288,20.0,168.67,168.6,10.86005125]
[1729575816502,5.9298,168.64,168.6,10.86005125]
[1729575820475,15.528,168.68,168.6,10.86005125]
[1729575821386,5.9291,168.66,168.6,10.86005125]
[1729575825475,5.9294,168.65,168.6,10.86005125]
[1729575826776,20.0,168.67,168.56,21.3866]
[1729575826977,5.9302,168.63,168.56,26.12435125]
[1729575828602,6.3731,168.66,168.54,20.0]
[1729575828785,6.3731,168.66,168.52,28.17420159]
[1729575828786,5.9316,168.59,168.53,10.86005125]
[1729575828975,5.9319,168.58,168.52,73.66323693]
[1729575829294,5.9319,168.58,168.52,51.81163534]
[1729575830398,5.932,168.58,168.51,10.86005125]
[1729575830803,5.9323,168.57,168.51,10.86005125]
[1729575832806,5.9323,168.57,168.5,20.0]
[1729575832978,5.9323,168.57,168.51,10.86005125]
[1729575833299,5.9319,168.58,168.51,10.86005125]
[1729575835504,5.9319,168.58,168.49,57.96730318]
[1729575835505,5.9332,168.55,168.49,57.96730318]
[1729575835680,5.9336,168.53,168.49,6.15566784]
[1729575835880,5.9336,168.53,168.47,20.0]
[1729575836901,5.9336,168.53,168.46,20.0]
[1729575838500,5.9336,168.53,168.45,17.01688238]
[1729575845903,5.9336,168.53,168.46,10.86005125]
[1729575846705,5.9336,168.53,168.48,10.86005125]
[1729575862820,21.6344,168.6,168.5,10.86005125]
[1729575863133,5.9322,168.58,168.52,10.86005125]
[1729575866906,21.6344,168.6,168.52,10.86005125]
[1729575867228,5.9317,168.59,168.52,10.86005125]
[1729575868825,5.9317,168.59,168.54,10.86005125]
[1729575874519,5.9317,168.59,168.5,15.5258]
[1729575874828,5.9317,168.59,168.54,10.86005125]
[1729575875230,5.931,168.61,168.56,10.86005125]
[1729575881336,5.9312,168.6,168.56,10.86005125]
[1729575887445,5.9312,168.6,168.58,10.86005125]
[1729575887938,5.9312,168.6,168.56,10.86005125]
[1729575888734,5.9307,168.62,168.56,10.86005125]
[1729575888946,5.9302,168.63,168.58,10.86005125]
[1729575894950,5.9302,168.63,168.6,10.86005125]
[1729575897932,14.8225,168.67,168.6,10.86005125]
[1729575899247,5.929,168.66,168.6,10.86005125]
[1729575899441,5.9296,168.65,168.6,10.86005125]
[1729575900251,22.7556,168.68,168.62,10.86005125]
[1729575900452,5.9291,168.66,168.62,10.86005125]
[1729575903734,22.5379,168.68,168.62,10.86005125]
[1729575904058,5.9281,168.69,168.64,10.86005125]
[1729575904240,5.9284,168.68,168.64,10.86005125]
[1729575905634,43.776884,168.71,168.58,43.776884]
[1729575905831,5.9293,168.66,168.61,10.86005125]
[1729575911939,43.776884,168.71,168.58,43.776884]
[1729575912138,5.9297,168.65,168.59,10.86005125]
[1729575915265,5.9276,168.7,168.59,10.86005125]
[1729575915467,43.776884,168.71,168.61,10.86005125]
[1729575915666,5.929,168.66,168.61,10.86005125]
[1729575918673,5.929,168.66,168.59,10.86005125]
[1729575926065,5.929,168.66,168.61,10.86005125]
[1729575926678,5.929,168.66,168.59,10.86005125]
[1729575927783,5.929,168.66,168.58,43.776884]
[1729575928461,5.929,168.66,168.58,20.0]
[1729575930988,5.9295,168.65,168.58,20.0]
[1729575933789,20.0,168.65,168.55,57.95078794]
[1729575934002,20.0,168.65,168.55,6.1551526]
[1729575934290,5.9297,168.64,168.55,6.1551526]
[1729575934475,5.931,168.61,168.55,6.1551526]
[1729575935499,5.931,168.61,168.53,43.776884]
[1729575935675,5.931,168.61,168.53,49.9327154]
[1729575938695,5.9312,168.6,168.53,26.1558314]
[1729575943903,23.776884,168.64,168.52,15.6871]
[1729575944072,5.9304,168.62,168.52,20.0]
[1729575944279,5.9317,168.59,168.52,20.0]
[1729575948207,5.9318,168.59,168.5,20.0]
[1729575948384,5.9318,168.59,168.52,10.86005125]
[1729575949298,20.0,168.65,168.52,10.86005125]
[1729575949502,5.9309,168.61,168.52,10.86005125]
[1729575950099,5.9312,168.6,168.52,10.86005125]
[1729575950399,20.0,168.65,168.56,10.86005125]
[1729575950599,5.9297,168.65,168.56,10.86005125]
[1729575950801,5.9306,168.62,168.56,10.86005125]
[1729575952406,20.0,168.63,168.5,22.8228]
[1729575952604,20.0,168.63,168.51,10.86005125]
[1729575952899,5.9312,168.6,168.53,10.86005125]
[1729575953084,5.9308,168.61,168.53,10.86005125]
[1729575953281,5.9305,168.62,168.55,10.86005125]
[1729575957808,5.9308,168.61,168.54,20.0]
[1729575958591,5.9312,168.6,168.54,20.0]
[1729575959522,20.0,168.64,168.53,20.0]
[1729575959816,5.9315,168.6,168.53,20.0]
[1729575960117,5.9315,168.59,168.53,20.0]
[1729575961994,5.9314,168.6,168.53,20.0]
[1729575963015,5.9305,168.62,168.54,104.12363074]
[1729575964315,5.9301,168.63,168.54,104.12363074]
[1729575964618,20.0,168.64,168.54,104.12363074]
[1729575965313,5.9308,168.61,168.54,104.12363074]
[1729575965894,20.0,168.64,168.54,104.12363074]
[1729575966114,5.9314,168.6,168.53,20.0]
[1729575974632,20.0,168.64,168.52,69.48669549]
[1729575974927,6.4629,168.61,168.52,69.48669549]
[1729575975128,5.932,168.58,168.52,69.48669549]
[1729575977008,5.9326,168.56,168.51,6.15170822]
[1729575977207,5.9326,168.56,168.49,121.28233323]
[1729575977625,20.0,168.59,168.49,69.48669549]
[1729575977821,5.9327,168.56,168.49,69.48669549]
[1729575978421,5.9327,168.56,168.5,23.776884]
[1729575978815,20.0,168.59,168.46,16.4975]
[1729575978816,14.8303,168.58,168.46,16.4975]
[1729575979024,5.9344,168.51,168.43,69.48669549]
[1729575979222,5.9347,168.5,168.43,75.64036379]
[1729575979410,5.9347,168.5,168.43,6.1536683]
[1729575979607,5.935,168.49,168.43,6.1536683]
[1729575979835,5.9354,168.48,168.43,6.1536683]
[1729575980934,66.705584,168.51,168.38,21.8559]
[1729575981139,5.9368,168.44,168.38,21.8559]
[1729575982218,66.705584,168.51,168.38,21.8559]
[1729575982414,42.9287,168.51,168.4,80.34674674]
[1729575982633,22.9287,168.51,168.42,10.86005125]
[1729575982931,5.9348,168.5,168.42,10.86005125]
[1729575983433,22.9287,168.51,168.42,10.86005125]
[1729575983622,5.9351,168.49,168.42,10.86005125]
[1729575984222,21.8672,168.55,168.44,10.86005125]
[1729575984426,20.0,168.54,168.44,10.86005125]
[1729575984618,5.9341,168.52,168.44,10.86005125]
[1729575986837,21.8672,168.55,168.46,10.86005125]
[1729575987021,5.9335,168.54,168.46,10.86005125]
[1729575987236,5.9336,168.53,168.46,10.86005125]
[1729575988123,27.8004,168.55,168.48,10.86005125]
[1729575988327,15.7933,168.55,168.48,10.86005125]
[1729575989427,5.9333,168.54,168.48,10.86005125]
[1729575989629,5.9326,168.56,168.5,10.86005125]
[1729575991250,22.199,168.59,168.5,10.86005125]
[1729575991424,22.199,168.59,168.48,30.86005125]
[1729575991744,5.9333,168.54,168.48,30.86005125]
[1729575992324,5.9333,168.54,168.48,10.86005125]
[1729575993647,20.0,168.58,168.5,10.86005125]
[1729575994027,5.9319,168.58,168.5,10.86005125]
[1729575994227,5.9322,168.57,168.5,10.86005125]
[1729575996732,5.9326,168.56,168.5,10.86005125]
[1729575997748,22.199,168.59,168.46,93.26357949]
[1729575998054,5.9329,168.55,168.49,10.86005125]
[1729575999647,5.9332,168.55,168.49,10.86005125]
[1729576008559,5.9326,168.57,168.49,10.86005125]
[1729576008755,22.199,168.59,168.49,10.86005125]
[1729576008937,5.9329,168.55,168.49,10.86005125]
[1729576019054,22.199,168.59,168.51,10.86005125]
[1729576019256,5.9322,168.57,168.51,10.86005125]
[1729576019855,5.9322,168.57,168.5,10.86005125]
[1729576022278,5.9326,168.56,168.5,10.86005125]
[1729576026674,5.9332,168.55,168.47,20.0]
[1729576026876,5.9332,168.55,168.48,10.86005125]
[1729576027251,22.199,168.59,168.48,10.86005125]
[1729576027467,5.9333,168.54,168.48,10.86005125]
[1729576030087,22.199,168.59,168.46,10.86005125]
[1729576030294,20.0,168.56,168.45,32.03216082]
[1729576030473,14.8306,168.57,168.45,32.03216082]
[1729576030474,5.9345,168.51,168.45,10.86005125]
[1729576030673,6.4195,168.51,168.41,15.7415]
[1729576030868,5.9358,168.47,168.39,69.48669549]
[1729576031169,5.9358,168.47,168.39,86.50085264]
[1729576031870,5.9358,168.47,168.4,43.776884]
[1729576032067,5.9358,168.47,168.4,20.0]
[1729576032297,5.9358,168.47,168.39,86.50085264]
[1729576033466,5.9358,168.47,168.4,23.776884]
[1729576034677,5.9367,168.45,168.39,6.1541059]
[1729576034989,5.9371,168.43,168.35,10.86005125]
[1729576035479,5.9371,168.43,168.35,17.01468751]
[1729576036487,5.9376,168.42,168.35,17.01468751]
[1729576036983,5.9376,168.42,168.35,6.15463626]
[1729576037183,30.341684,168.46,168.35,6.15463626]
[1729576037365,5.9383,168.4,168.33,22.5419]
[1729576037564,5.9383,168.4,168.33,15.8853]
[1729576041878,5.9383,168.4,168.33,26.74535125]
[1729576048696,5.9378,168.42,168.37,10.86005125]
[1729576049887,6.5648,168.46,168.35,10.86005125]
[1729576050092,5.9383,168.4,168.33,26.74535125]
[1729576050666,15.6136,168.44,168.32,6.15514593]
[1729576050866,43.776884,168.43,168.32,6.15514593]
[1729576051073,5.9394,168.37,168.32,6.15514593]
[1729576052593,5.9394,168.37,168.31,10.86005125]
[1729576053089,5.9394,168.37,168.29,12.81275817]
[1729576053090,5.9403,168.35,168.29,6.15615817]
[1729576057381,21.2164,168.37,168.31,10.86005125]
[1729576057589,5.9394,168.37,168.31,10.86005125]
[1729576057787,5.9396,168.36,168.31,10.86005125]
[1729576057989,5.9396,168.36,168.29,17.01620942]
[1729576059875,15.064,168.41,168.31,10.86005125]
[1729576060081,20.0,168.4,168.31,10.86005125]
[1729576060387,5.9393,168.37,168.31,10.86005125]
[1729576077186,5.9397,168.36,168.31,10.86005125]
[1729576077892,5.9397,168.36,168.29,17.01620942]
[1729576078208,5.9397,168.36,168.3,23.776884]
[1729576087899,5.9397,168.36,168.3,93.26357949]
[1729576095113,5.9411,168.32,168.29,6.15615817]
[1729576097300,5.9411,168.32,168.27,23.776884]
[1729576100116,5.9406,168.34,168.27,23.776884]
[1729576100320,5.9406,168.34,168.27,34.63693525]
[1729576101315,5.9408,168.33,168.27,34.63693525]
[1729576105028,5.9402,168.35,168.27,34.63693525]
[1729576106109,5.9404,168.34,168.27,34.63693525]
[1729576107221,5.9408,168.33,168.27,23.776884]
[1729576107521,5.9408,168.33,168.27,34.63693525]
[1729576111312,5.9408,168.33,168.27,23.776884]
[1729576112514,5.9408,168.33,168.27,23.75585138]
[1729576112823,5.9414,168.31,168.26,6.20321656]
[1729576113536,5.9414,168.31,168.26,17.06326781]
[1729576113942,5.9411,168.32,168.26,17.06326781]
[1729576116235,5.9411,168.32,168.26,6.20321656]
[1729576116823,20.0,168.34,168.26,6.20321656]
[1729576117022,5.9421,168.3,168.24,23.776884]
[1729576117228,5.9421,168.29,168.24,23.776884]
[1729576118033,5.9429,168.27,168.23,6.82796965]
[1729576118235,5.9429,168.27,168.23,0.6231497]
[1729576124345,16.0169,168.31,168.23,0.6231497]
[1729576124550,5.9425,168.28,168.23,0.6231497]
[1729576130840,5.9427,168.28,168.23,0.6231497]
[1729576131646,5.9419,168.3,168.23,11.48320095]
[1729576132356,5.9421,168.29,168.23,11.48320095]
[1729576136361,5.9421,168.29,168.23,0.6231497]
[1729576142845,15.0407,168.39,168.28,10.86005125]
[1729576143164,5.9404,168.34,168.28,10.86005125]
[1729576143367,6.20197619,168.38,168.27,23.776884]
[1729576143368,5.94,168.35,168.27,23.776884]
[1729576143539,5.94,168.35,168.3,10.86005125]
[1729576144370,5.9396,168.37,168.3,10.86005125]
[1729576144562,15.0407,168.39,168.3,10.86005125]
[1729576144563,5.9397,168.36,168.3,10.86005125]
[1729576149648,20.0,168.38,168.27,23.776884]
[1729576149965,20.0,168.36,168.24,69.48669549]
[1729576150145,20.0,168.36,168.23,7.2795497]
[1729576150146,5.9416,168.31,168.23,18.13960095]
[1729576151251,5.9416,168.31,168.24,23.776884]
[1729576153251,5.9416,168.31,168.26,10.86005125]
[1729576153450,5.941,168.33,168.26,10.86005125]
[1729576158065,20.0,168.37,168.26,10.86005125]
[1729576158255,5.9403,168.34,168.28,10.86005125]
[1729576167068,5.9403,168.34,168.25,69.48669549]
[1729576167271,20.0,168.37,168.25,69.48669549]
[1729576167564,5.941,168.33,168.27,10.86005125]
[1729576169875,5.941,168.33,168.29,10.86005125]
[1729576171678,20.0,168.37,168.29,10.86005125]
[1729576171865,5.9403,168.35,168.29,10.86005125]
[1729576177081,5.9403,168.34,168.29,10.86005125]
[1729576177266,20.0,168.37,168.29,10.86005125]
[1729576177465,5.9404,168.34,168.29,10.86005125]
[1729576180563,5.94,168.35,168.29,10.86005125]
[1729576180765,5.9399,168.36,168.29,10.86005125]
[1729576181179,5.9399,168.36,168.31,10.86005125]
[1729576189592,20.0,168.38,168.28,23.776884]
[1729576189793,5.94,168.35,168.3,10.86005125]
[1729576201502,5.9395,168.37,168.3,10.86005125]
[1729576201709,20.0,168.38,168.3,10.86005125]
[1729576201885,5.9399,168.36,168.3,10.86005125]
[1729576203994,5.94,168.35,168.3,10.86005125]
[1729576206592,20.0,168.38,168.3,10.86005125]
[1729576206800,5.9396,168.36,168.3,10.86005125]
[1729576208214,5.9401,168.35,168.3,10.86005125]
[1729576210113,5.9397,168.36,168.3,10.86005125]
[1729576210616,20.0,168.38,168.29,10.86005125]
[1729576210921,5.9403,168.35,168.29,10.86005125]
[1729576211820,5.9403,168.34,168.28,23.776884]
[1729576212009,5.9399,168.36,168.28,23.776884]
[1729576212318,5.9399,168.36,168.29,10.86005125]
[1729576212901,5.9401,168.35,168.29,10.86005125]
[1729576217334,5.9396,168.36,168.29,10.86005125]
[1729576220634,5.9396,168.36,168.28,23.776884]
[1729576221119,5.9396,168.36,168.29,10.86005125]
[1729576221923,5.9396,168.36,168.28,23.776884]
[1729576222608,5.9396,168.36,168.29,10.86005125]
[1729576223229,5.9401,168.35,168.29,10.86005125]
[1729576223431,5.9401,168.35,168.28,23.776884]
[1729576223605,5.9401,168.35,168.29,10.86005125]
[1729576225729,20.0,168.38,168.31,10.86005125]
[1729576225914,25.9391,168.38,168.33,10.86005125]
[1729576226316,5.9391,168.38,168.33,10.86005125]
[1729576226516,5.9393,168.37,168.33,10.86005125]
[1729576232031,15.0407,168.39,168.33,10.86005125]
[1729576232231,5.9389,168.39,168.33,10.86005125]
[1729576235531,5.9381,168.41,168.35,10.86005125]
[1729576235834,5.9383,168.4,168.35,10.86005125]
[1729576241144,20.0,168.42,168.35,10.86005125]
[1729576241449,21.0844,168.43,168.37,10.86005125]
[1729576241625,5.9377,168.42,168.37,10.86005125]
[1729576250548,16.0398,168.5,168.42,23.776884]
[1729576250757,16.0398,168.54,168.48,10.86005125]
[1729576252323,5.9338,168.53,168.48,10.86005125]
[1729576258257,16.0398,168.54,168.48,10.86005125]
[1729576259550,5.9336,168.53,168.48,10.86005125]
[1729576260659,20.0,168.54,168.5,10.86005125]
[1729576263472,21.2821,168.59,168.43,15.1118]
[1729576263473,1.03197654,168.61,168.52,10.86005125]
[1729576263643,0.1,168.61,168.49,16.1692]
[1729576263847,0.1,168.58,168.45,16.1692]
[1729576264052,5.9341,168.52,168.46,10.86005125]
[1729576267564,5.9329,168.55,168.46,10.86005125]
[1729576267766,20.0,168.54,168.48,10.86005125]
[1729576268071,5.933,168.55,168.48,10.86005125]
[1729576268650,5.9326,168.56,168.5,10.86005125]
[1729576270174,5.9322,168.58,168.52,10.86005125]
[1729576270471,16.271,168.6,168.52,10.86005125]
[1729576270472,5.9323,168.57,168.52,10.86005125]
[1729576270647,5.9323,168.57,168.48,69.48669549]
[1729576270970,5.9323,168.57,168.5,10.86005125]
[1729576274571,5.9323,168.57,168.49,23.776884]
[1729576274871,5.9323,168.57,168.5,10.86005125]
[1729576275576,20.0,168.59,168.5,10.86005125]
[1729576275965,5.9326,168.56,168.5,10.86005125]
[1729576283284,5.9319,168.58,168.49,23.776884]
[1729576283458,20.0,168.59,168.49,34.63693525]
[1729576284379,5.9326,168.57,168.49,34.63693525]
[1729576284576,5.9326,168.56,168.49,34.63693525]
[1729576285392,20.0,168.59,168.49,34.63693525]
[1729576285561,23.876884,168.57,168.45,6.17710073]
[1729576285761,5.9355,168.48,168.42,27.26845125]
[1729576286765,5.9355,168.48,168.41,6.17690718]
[1729576286960,16.0339,168.51,168.41,6.17690718]
[1729576287166,5.935,168.49,168.42,23.776884]
[1729576292381,5.9366,168.45,168.38,15.4215]
[1729576292687,20.0,168.48,168.35,69.48669549]
[1729576292985,20.0,168.48,168.34,16.1573]
[1729576292986,5.9379,168.41,168.34,16.1573]
[1729576293400,5.9379,168.41,168.34,22.3370136]
[1729576294068,5.9379,168.41,168.35,23.776884]
[1729576294269,5.9379,168.41,168.34,22.3370136]
[1729576295493,5.9383,168.4,168.34,6.1797136]
[1729576302969,5.9378,168.42,168.34,6.1797136]
[1729576303390,5.938,168.41,168.34,6.1797136]
[1729576304099,5.938,168.41,168.34,17.03976485]
[1729576307702,5.938,168.41,168.33,23.776884]
[1729576319102,5.9382,168.41,168.33,23.776884]
[1729576324916,20.0,168.44,168.36,10.86005125]
[1729576325119,20.0,168.44,168.38,10.86005125]
[1729576325517,20.0,168.43,168.33,104.12363074]
[1729576325825,5.9378,168.41,168.33,93.26357949]
[1729576326120,20.0,168.43,168.33,93.26357949]
[1729576326301,5.9381,168.41,168.33,93.26357949]
[1729576326496,20.0,168.43,168.33,93.26357949]
[1729576326701,5.9378,168.42,168.34,10.86005125]
[1729576327108,20.0,168.43,168.34,10.86005125]
[1729576327419,5.9378,168.42,168.34,10.86005125]
[1729576328421,5.9378,168.42,168.35,23.776884]
[1729576328609,20.0,168.45,168.35,23.776884]
[1729576328610,20.0,168.45,168.36,10.86005125]
[1729576329333,20.0,168.42,168.36,10.86005125]
[1729576329721,5.9364,168.45,168.37,23.776884]
[1729576329926,5.9364,168.45,168.38,10.86005125]
[1729576330631,5.9376,168.42,168.35,23.776884]
[1729576331416,5.9368,168.44,168.36,10.86005125]
[1729576331637,5.937,168.44,168.36,10.86005125]
[1729576331933,20.0,168.46,168.36,10.86005125]
[1729576331934,5.9372,168.43,168.36,10.86005125]
[1729576334031,20.0,168.46,168.34,10.86005125]
[1729576334332,5.9384,168.4,168.33,23.776884]
[1729576339716,20.0,168.42,168.33,23.776884]
[1729576339916,5.9379,168.41,168.33,23.776884]
[1729576341821,20.0,168.43,168.32,6.19473047]
[1729576342022,5.9398,168.36,168.29,27.37355125]
[1729576342745,16.3785,168.38,168.29,16.5135]
[1729576342920,5.9401,168.35,168.28,6.18464695]
[1729576344030,5.9401,168.35,168.28,17.0446982]
[1729576346328,5.9409,168.33,168.28,6.18464695]
[1729576346548,5.9409,168.33,168.25,16.3709]
[1729576346549,5.9409,168.33,168.25,27.23095125]
[1729576346842,5.9409,168.33,168.26,29.96361947]
[1729576354151,5.9409,168.33,168.26,29.80589464]
[1729576355240,16.3785,168.38,168.26,29.80589464]
[1729576355241,16.3785,168.38,168.29,11.10420865]
[1729576355438,5.9393,168.37,168.29,11.10420865]
[1729576355849,16.3785,168.38,168.29,11.10420865]
[1729576356138,5.9401,168.35,168.29,11.10420865]
[1729576361932,5.9401,168.35,168.27,11.10420865]
[1729576362338,5.9401,168.35,168.28,23.776884]
[1729576363462,5.9401,168.35,168.29,11.10420865]
[1729576363752,16.3785,168.38,168.29,11.10420865]
[1729576364050,25.9394,168.37,168.29,11.10420865]
[1729576368750,25.9394,168.37,168.3,23.776884]
[1729576370439,16.3789,168.42,168.33,11.10420865]
[1729576370837,5.9383,168.4,168.33,11.10420865]
[1729576371759,5.9379,168.41,168.34,23.776884]
[1729576372056,5.9369,168.44,168.37,11.10420865]
[1729576372443,5.9372,168.43,168.37,11.10420865]
[1729576375745,5.937,168.44,168.37,26.95050865]
[1729576376641,5.9364,168.45,168.37,26.95050865]
[1729576376841,5.9368,168.44,168.37,26.95050865]
[1729576382445,5.9368,168.44,168.37,11.10420865]
[1729576390069,5.9372,168.43,168.37,11.10420865]
[1729576390768,20.0,168.46,168.39,11.10420865]
[1729576390961,5.9364,168.45,168.39,11.10420865]
[1729576391352,20.0,168.46,168.38,23.776884]
[1729576391553,5.937,168.44,168.38,34.88109265]
[1729576392169,25.9363,168.46,168.4,11.10420865]
[1729576392353,5.9363,168.46,168.4,11.10420865]
[1729576392975,20.0,168.49,168.4,11.10420865]
[1729576393971,5.9361,168.47,168.4,11.10420865]